bitfinex-derivatives/quotes_SOLF0:USTF0_20250907
["timestamp","ask_amount","ask_price","bid_price","bid_amount"]
[1757207911745,54.14,202.06,202.04,7.69]
[1757207911946,5.8,202.1,202.03,9.24449912]
[1757207912347,5.8,202.11,202.05,9.24449912]
[1757207914144,5.8,202.09,202.02,1.55449912]
[1757207924670,5.8,202.09,202.03,7.69]
[1757207924963,1.55449912,202.1,201.96,4.4549]
[1757207924964,1.55449912,202.1,202.04,1.55449912]
[1757207926262,5.8,202.09,202.04,1.55449912]
[1757207926465,1.55449912,202.1,202.04,1.55449912]
[1757207926665,5.8,202.09,202.04,1.55449912]
[1757207927269,1.55449912,202.1,202.04,1.55449912]
[1757207927465,5.8,202.09,202.04,1.55449912]
[1757207927768,1.55449912,202.1,202.04,1.55449912]
[1757207927972,5.8,202.09,202.04,1.55449912]
[1757207928270,5.8,202.09,202.04,9.24449912]
[1757207928459,1.55449912,202.1,202.04,9.24449912]
[1757207929064,5.82,202.09,202.04,9.24449912]
[1757207929271,1.55449912,202.1,202.04,9.24449912]
[1757207930666,5.82,202.09,202.04,9.24449912]
[1757207930864,0.86158874,202.12,202.04,9.24449912]
[1757207931071,5.82,202.11,202.08,9.24449912]
[1757207931965,5.82,202.11,202.09,9.24449912]
[1757207932769,332.92,202.14,202.1,7.69]
[1757207932964,5.82,202.13,202.1,7.69]
[1757207934269,334.47449912,202.14,202.08,1.55449912]
[1757207934965,5.82,202.13,202.08,1.55449912]
[1757207935166,340.29449912,202.14,202.08,9.24449912]
[1757207937568,1.55449912,202.1,202.05,1.55449912]
[1757207937873,121.5,202.09,202.03,9.24449912]
[1757207938072,7.37449912,202.08,202.03,1.55449912]
[1757207938569,1.55449912,202.08,202.01,1.55449912]
[1757207938872,5.82,202.07,202.01,1.55449912]
[1757207939168,7.37449912,202.07,202.01,1.55449912]
[1757207941271,1.55449912,202.05,201.95,7.69]
[1757207941476,5.82,202.03,201.98,1.55449912]
[1757207941676,32.22,202.04,201.98,1.55449912]
[1757207942276,5.82,202.03,201.98,1.55449912]
[1757207942673,32.22,202.04,201.98,1.55449912]
[1757207942874,5.82,202.03,201.98,1.55449912]
[1757207943072,38.04,202.04,201.98,1.55449912]
[1757207943577,5.82,202.03,201.93,7.69]
[1757207943772,1.55449912,202.02,201.96,1.55449912]
[1757207943974,5.82,202.01,201.96,1.55449912]
[1757207944280,1.55449912,202.02,201.96,1.55449912]
[1757207944579,5.82,202.01,201.96,1.55449912]
[1757207944877,1.55449912,202.02,201.96,1.55449912]
[1757207945078,1.55449912,202.02,201.94,7.69]
[1757207945371,5.82,202.01,201.94,9.24449912]
[1757207945773,1.55449912,202.02,201.94,9.24449912]
[1757207945972,5.82,202.01,201.94,9.24449912]
[1757207952376,1.55449912,202.02,201.95,1.55449912]
[1757207952584,5.82,202.01,201.95,7.69]
[1757207952784,5.82,202.01,201.95,9.24449912]
[1757207953487,5.82,202.01,201.95,7.69]
[1757207956587,125.38,202.04,201.95,10.11804704]
[1757207956781,5.82,202.04,201.96,7.69]
[1757207957387,5.82,202.04,201.96,2.42804704]
[1757207957588,5.82,202.04,201.97,7.69]
[1757207959889,2.42804704,202.05,201.97,7.69]
[1757207960288,5.81,202.04,201.97,7.69]
[1757207960792,2.42804704,202.05,201.97,7.69]
[1757207961289,5.81,202.04,201.97,7.69]
[1757207964687,5.81,202.05,201.97,7.69]
[1757207964894,5.81,202.02,201.93,8.02]
[1757207965088,17.29804704,202.03,201.93,8.02]
[1757207965689,5.81,202.01,201.93,8.02]
[1757207966892,14.87,202.02,201.93,8.02]
[1757207967196,5.81,202.01,201.93,8.02]
[1757207971599,66.47,202.02,201.93,8.02]
[1757207971796,14.87,201.98,201.9,172.27491196]
[1757207971997,5.82,201.97,201.9,172.27491196]
[1757207973303,5.82,201.97,201.9,8.02]
[1757207973705,14.87,201.98,201.9,8.02]
[1757207974704,5.82,201.95,201.85,8.02]
[1757207974902,5.82,201.92,201.85,8.02]
[1757207975700,2.42804704,201.93,201.85,8.02]
[1757207975900,0.03597008,201.91,201.86,0.03410204]
[1757207976606,5.82,201.9,201.86,0.03410204]
[1757207976906,0.03597008,201.91,201.86,0.03410204]
[1757207977106,8.24804704,201.9,201.86,0.03410204]
[1757207982706,121.46,201.89,201.86,0.03410204]
[1757207982904,2.42804704,201.87,201.86,0.03410204]
[1757207983113,8.24804704,201.87,201.86,0.03410204]
[1757207983710,8.74804704,201.87,201.86,0.03410204]
[1757207985912,6.32,201.87,201.86,0.03410204]
[1757207986118,62.12,201.87,201.86,0.03410204]
[1757207986911,62.12,201.87,201.7,160.50755231]
[1757207987120,5.78,201.83,201.73,8.02]
[1757207988225,0.03655265,201.8,201.73,8.02]
[1757207991719,0.03655265,201.8,201.78,7.44]
[1757207992114,7.7,201.84,201.78,7.44]
[1757207992319,0.03423461,201.81,201.77,2.42804704]
[1757207992720,0.03423461,201.81,201.78,7.44]
[1757207993321,0.03423461,201.81,201.77,2.42804704]
[1757207993529,0.03423461,201.81,201.78,7.44]
[1757207994025,0.03423461,201.81,201.77,2.42804704]
[1757207994528,0.03423461,201.81,201.78,7.44]
[1757207996221,5.82423461,201.81,201.75,7.44]
[1757207996426,0.03423461,201.81,201.75,7.44]
[1757208003928,0.03423461,201.81,201.77,2.42804704]
[1757208004132,0.03423461,201.81,201.78,7.44]
[1757208004829,20.66,201.88,201.78,7.44]
[1757208007740,5.83,201.87,201.78,7.44]
[1757208010729,20.7,201.87,201.78,7.44]
[1757208010934,20.7,201.86,201.78,7.44]
[1757208011926,14.87,201.86,201.78,7.44]
[1757208012131,5.83,201.85,201.78,7.44]
[1757208015438,1.55690157,201.83,201.78,7.44]
[1757208015638,1.55690157,201.83,201.76,7.44]
[1757208017336,5.83,201.8,201.76,7.44]
[1757208017540,1.55690157,201.79,201.76,7.44]
[1757208017741,7.38690157,201.79,201.76,7.44]
[1757208017942,7.38690157,201.79,201.73,7.44]
[1757208018137,7.38690157,201.79,201.75,7.44]
[1757208018343,7.38690157,201.79,201.73,7.44]
[1757208018542,7.38690157,201.79,201.74,4.4128619]
[1757208018732,1.55690157,201.79,201.73,7.44]
[1757208018938,1.55690157,201.79,201.74,4.41286041]
[1757208019241,1.55690157,201.79,201.73,7.73]
[1757208019436,7.38690157,201.79,201.75,7.73]
[1757208019734,7.38690157,201.79,201.72,1.55690157]
[1757208019735,7.38690157,201.79,201.73,7.73]
[1757208019940,7.38690157,201.79,201.75,7.73]
[1757208020242,7.38690157,201.79,201.73,7.73]
[1757208020442,7.38690157,201.79,201.74,4.41752047]
[1757208020748,1.55690157,201.79,201.75,4.41752047]
[1757208021045,1.55690157,201.79,201.73,7.73]
[1757208021232,1.55690157,201.79,201.74,4.4174913]
[1757208021433,1.55690157,201.79,201.75,4.4174913]
[1757208021635,1.55690157,201.79,201.72,1.55690157]
[1757208021835,1.55690157,201.79,201.73,4.41813217]
[1757208022032,1.55690157,201.79,201.74,4.41813217]
[1757208022342,1.55690157,201.79,201.73,7.73]
[1757208022546,1.55690157,201.79,201.74,4.418845]
[1757208022745,1.55690157,201.79,201.73,1.55690157]
[1757208022945,1.55690157,201.79,201.74,4.418845]
[1757208023144,1.55690157,201.79,201.73,1.55690157]
[1757208023440,1.55690157,201.79,201.74,4.41952535]
[1757208023645,1.55690157,201.79,201.74,7.73]
[1757208024144,23.21373636,201.85,201.76,7.73]
[1757208024446,7.38690157,201.8,201.76,7.73]
[1757208024647,7.38690157,201.8,201.73,1.55690157]
[1757208024947,7.38690157,201.8,201.75,7.73]
[1757208025147,7.38690157,201.8,201.74,7.73]
[1757208025344,7.38690157,201.8,201.75,4.42129266]
[1757208025547,7.38690157,201.8,201.74,7.73]
[1757208025746,7.38690157,201.8,201.75,4.42129266]
[1757208025946,7.38690157,201.8,201.74,7.73]
[1757208026150,7.38690157,201.8,201.75,4.42113683]
[1757208026446,7.38690157,201.8,201.74,7.73]
[1757208026646,7.38690157,201.8,201.75,4.42234562]
[1757208026848,7.38690157,201.8,201.74,7.73]
[1757208027149,7.38690157,201.8,201.76,7.73]
[1757208027345,7.38690157,201.8,201.74,7.73]
[1757208027648,7.38690157,201.8,201.75,4.42361462]
[1757208027849,7.38690157,201.8,201.77,7.73]
[1757208029146,1.55690157,201.8,201.77,7.73]
[1757208029347,5.83,201.79,201.77,7.73]
[1757208038258,1.55690157,201.8,201.75,7.73]
[1757208038452,1.55690157,201.8,201.74,1.55690157]
[1757208038652,5.83,201.79,201.75,4.40928352]
[1757208038858,5.83,201.79,201.75,7.73]
[1757208039054,5.83,201.79,201.74,1.55690157]
[1757208039255,5.83,201.79,201.76,7.73]
[1757208039556,5.83,201.79,201.74,1.55690157]
[1757208039751,5.83,201.79,201.76,7.73]
[1757208040156,5.83,201.79,201.74,1.55690157]
[1757208040358,5.83,201.79,201.76,7.73]
[1757208040761,5.83,201.79,201.74,1.55690157]
[1757208040951,5.83,201.83,201.76,9.28690157]
[1757208041157,20.71,201.86,201.82,1.55690157]
[1757208041359,14.88,201.86,201.83,7.73]
[1757208041562,14.88,201.86,201.82,1.55690157]
[1757208041763,462.00690157,201.89,201.83,7.73]
[1757208045763,456.17690157,201.89,201.83,7.73]
[1757208045961,5.83,201.86,201.83,7.73]
[1757208046363,1.55690157,201.87,201.83,7.73]
[1757208046563,5.83,201.86,201.83,7.73]
[1757208046759,1.55690157,201.87,201.83,7.73]
[1757208047063,5.83,201.86,201.83,7.73]
[1757208047564,1.55690157,201.87,201.83,7.73]
[1757208048166,5.83,201.86,201.83,7.73]
[1757208049467,1.55690157,201.87,201.83,7.73]
[1757208049966,5.82,201.86,201.83,7.73]
[1757208050164,5.82,201.86,201.82,1.55690157]
[1757208050466,5.82,201.86,201.71,4.08224992]
[1757208050467,121.34,201.86,201.85,7.53]
[1757208053763,127.16,201.86,201.8,9.08690157]
[1757208059874,127.16,201.86,201.82,1.55690157]
[1757208060072,5.82,201.85,201.82,1.55690157]
[1757208060272,121.34,201.86,201.82,1.55690157]
[1757208060472,5.82,201.85,201.82,1.55690157]
[1757208060673,5.82,201.85,201.82,9.08690157]
[1757208061073,41.96,201.85,201.82,9.08690157]
[1757208061973,82.08,201.85,201.82,9.08690157]
[1757208063076,5.82,201.84,201.82,9.08690157]
[1757208066380,5.82,201.84,201.82,7.53]
[1757208066580,5.82,201.84,201.82,9.08690157]
[1757208066778,5.82,201.84,201.82,1.55690157]
[1757208066975,76.26,201.85,201.82,1.55690157]
[1757208067277,5.82,201.84,201.79,7.53]
[1757208067476,5.82,201.84,201.8,1.55690157]
[1757208067879,76.26,201.85,201.8,1.55690157]
[1757208068180,76.26,201.85,201.8,9.08690157]
[1757208068374,5.82,201.84,201.7,8.54284992]
[1757208068576,1.55690157,201.83,201.77,7.53]
[1757208068777,5.82,201.82,201.76,1.55690157]
[1757208072386,5.82,201.8,201.74,9.08690157]
[1757208074987,5.82,201.85,201.76,1.55690157]
[1757208075188,5.82,201.86,201.82,1.55690157]
[1757208075393,43.81690157,201.9,201.84,1.55690157]
[1757208075691,5.82,201.89,201.83,7.53]
[1757208077991,14.16373636,201.93,201.84,2.43074996]
[1757208078189,5.82,201.93,201.88,7.53]
[1757208078388,5.82,201.93,201.87,2.43074996]
[1757208078589,5.82,201.93,201.88,7.53]
[1757208078795,121.28,201.94,201.88,7.53]
[1757208086703,5.82,201.93,201.88,7.53]
[1757208087103,121.28,201.94,201.88,7.53]
[1757208088207,5.82,201.93,201.88,7.53]
[1757208088802,5.82,201.93,201.87,8.05]
[1757208094811,5.82,201.93,201.87,10.48074996]
[1757208095012,5.82,201.93,201.88,8.05]
[1757208095216,5.82,201.93,201.87,2.43074996]
[1757208095511,127.11,201.94,201.88,8.05]
[1757208096614,5.83,201.93,201.88,8.05]
[1757208096911,121.28,201.94,201.88,8.05]
[1757208097213,5.83,201.93,201.88,8.05]
[1757208097412,121.28,201.94,201.88,8.05]
[1757208097613,5.83,201.93,201.88,8.05]
[1757208097813,121.28,201.94,201.88,8.05]
[1757208098211,5.83,201.93,201.88,8.05]
[1757208098513,121.28,201.94,201.88,8.05]
[1757208098907,5.83,201.93,201.88,8.05]
[1757208099209,5.83,201.93,201.87,10.48074996]
[1757208103516,5.83,201.93,201.88,8.05]
[1757208103714,5.83,201.93,201.87,2.43074996]
[1757208104015,5.83,201.93,201.88,8.05]
[1757208104314,5.83,201.93,201.87,2.43074996]
[1757208104916,5.83,201.93,201.88,8.05]
[1757208105616,5.83,201.93,201.87,2.43074996]
[1757208106117,5.83,201.93,201.87,10.48074996]
[1757208109415,5.83,201.93,201.88,7.83]
[1757208109614,5.83,201.93,201.87,2.43074996]
[1757208109809,5.83,201.93,201.88,7.83]
[1757208110210,127.11,201.94,201.88,7.83]
[1757208112313,5.83,201.94,201.88,7.83]
[1757208112519,5.83,201.98,201.88,7.83]
[1757208112816,28.56,201.96,201.9,2.43074996]
[1757208113016,39.18,201.96,201.9,2.43074996]
[1757208113217,5.83,202.01,201.91,7.83]
[1757208113518,121.14,202.0,201.94,7.83]
[1757208116215,121.12,202.0,201.94,7.83]
[1757208116419,126.95,202.01,201.97,7.83]
[1757208116611,126.95,202.01,201.96,2.43074996]
[1757208117117,126.95,202.01,201.97,7.83]
[1757208117315,126.95,202.01,201.96,2.43074996]
[1757208117517,126.95,202.01,201.97,7.83]
[1757208118224,126.95,202.01,201.96,2.43074996]
[1757208118422,126.95,202.01,201.97,7.83]
[1757208119322,126.95,202.01,201.96,2.43074996]
[1757208119925,121.1,202.01,201.96,2.43074996]
[1757208120127,126.93,202.01,201.97,7.83]
[1757208120426,5.83,202.01,201.97,7.83]
[1757208122226,126.91,202.01,201.97,7.83]
[1757208122423,126.91,202.01,201.96,2.43074996]
[1757208122824,126.91,202.01,201.97,7.83]
[1757208123025,126.91,202.01,201.96,2.43074996]
[1757208123223,126.91,202.01,201.97,7.83]
[1757208124325,8.34373636,202.08,201.97,7.83]
[1757208124529,81.86,202.07,201.99,10.26074996]
[1757208124728,5.83,202.06,201.99,10.26074996]
[1757208124922,81.86,202.07,201.99,10.26074996]
[1757208125130,5.83,202.06,201.99,10.26074996]
[1757208125325,81.86,202.07,201.99,10.26074996]
[1757208125524,5.83,202.06,201.99,10.26074996]
[1757208128234,5.83,202.05,201.99,10.26074996]
[1757208129426,5.83,202.06,201.99,10.26074996]
[1757208129830,5.83,202.06,201.95,7.83]
[1757208130030,5.83,202.06,201.9,2.43074996]
[1757208130232,5.83,202.06,201.83,232.56136951]
[1757208130233,5.83,202.03,201.92,7.83]
[1757208130537,5.83,202.01,201.92,7.83]
[1757208132634,2.43074996,202.1,201.86,14.9972]
[1757208132635,5.83,202.05,201.97,10.26074996]
[1757208133037,5.83,202.05,201.94,10.26074996]
[1757208133634,26.11074996,202.06,201.94,10.26074996]
[1757208134635,5.83,202.05,201.94,10.26074996]
[1757208134838,26.11074996,202.06,201.94,10.26074996]
[1757208135037,5.83,202.05,201.94,10.26074996]
[1757208135637,5.83,202.03,201.97,1.55369276]
[1757208136233,5.83,202.03,201.99,1.55369276]
[1757208136445,5.83,202.03,202.0,7.83]
[1757208136635,56.95,202.05,202.01,9.38369276]
[1757208136941,5.83,202.05,202.01,9.38369276]
[1757208137143,93.47,202.07,202.01,9.38369276]
[1757208137943,94.33175943,202.07,202.01,9.38369276]
[1757208138444,6.69175943,202.07,202.01,9.38369276]
[1757208140445,6.69175943,202.07,202.03,1.55369276]
[1757208140743,0.86175943,202.07,202.03,1.55369276]
[1757208142046,5.81,202.06,202.03,1.55369276]
[1757208142241,0.86175943,202.07,202.03,1.55369276]
[1757208143044,0.86175943,202.07,202.05,8.94369276]
[1757208145443,6.67175943,202.07,202.05,8.94369276]
[1757208146143,6.67175943,202.07,202.05,1.55369276]
[1757208147540,5.81,202.06,202.05,1.55369276]
[1757208147843,5.81,202.06,201.99,7.39]
[1757208148042,0.86175943,202.07,202.01,1.55369276]
[1757208148344,6.67175943,202.07,202.01,1.55369276]
[1757208150440,6.67175943,202.07,202.03,1.55369276]
[1757208150934,6.67175943,202.07,202.04,7.39]
[1757208152343,6.68175943,202.07,202.04,7.39]
[1757208152941,0.86175943,202.07,202.03,1.55369276]
[1757208153143,0.86175943,202.07,202.06,7.39]
[1757208153543,0.86175943,202.07,202.05,1.55369276]
[1757208153544,0.86175943,202.07,202.05,8.94369276]
[1757208153949,6.68175943,202.07,202.05,8.94369276]
[1757208158748,6.68175943,202.07,202.05,7.39]
[1757208159754,6.68175943,202.07,202.04,8.94369276]
[1757208161153,5.82,202.06,202.04,8.94369276]
[1757208168160,6.68175943,202.07,202.04,8.94369276]
[1757208169767,5.82,202.06,202.04,7.39]
[1757208170067,0.86175943,202.07,202.04,1.55369276]
[1757208170366,6.68175943,202.07,202.04,9.27369276]
[1757208171166,6.68175943,202.07,202.05,7.72]
[1757208171867,0.86175943,202.07,201.97,4.4547]
[1757208172065,0.86175943,202.07,202.02,9.27369276]
[1757208172264,5.82,202.06,202.03,7.72]
[1757208172761,5.82,202.06,202.02,1.55369276]
[1757208172966,5.82,202.06,202.03,7.72]
[1757208173459,5.82,202.06,202.02,1.55369276]
[1757208173659,5.82,202.06,202.03,7.72]
[1757208175075,5.82,202.06,202.02,1.55369276]
[1757208175565,5.82,202.06,202.03,7.72]
[1757208176064,5.82,202.06,202.02,1.55369276]
[1757208176470,5.82,202.06,202.03,7.72]
[1757208177666,5.82,202.06,202.02,1.55369276]
[1757208178071,5.82,202.06,202.03,7.72]
[1757208179269,5.82,202.06,202.02,1.55369276]
[1757208179570,0.86175943,202.07,202.02,1.55369276]
[1757208180176,0.86175943,202.07,202.02,9.27369276]
[1757208180574,5.82,202.06,202.02,9.27369276]
[1757208181078,0.86175943,202.07,202.02,9.27369276]
[1757208181773,5.82,202.06,202.02,9.27369276]
[1757208182272,0.86175943,202.07,202.02,9.27369276]
[1757208182678,5.82,202.06,202.03,7.72]
[1757208182876,0.86175943,202.07,202.03,7.72]
[1757208183071,0.86175943,202.07,201.95,4.4553]
[1757208183072,8.34373636,202.11,202.07,7.72]
[1757208183279,120.92,202.11,202.07,7.72]
[1757208183480,130.1253251,202.11,202.07,7.72]
[1757208183774,130.1253251,202.11,201.94,73.40523803]
[1757208183775,14.16373636,202.1,201.97,3.94673598]
[1757208183982,5.82,202.08,202.01,1.55369276]
[1757208184480,5.82,202.07,202.01,9.27369276]
[1757208190879,5.82,202.07,202.01,7.72]
[1757208191084,5.82,202.07,201.92,4.09743803]
[1757208191085,5.82,202.05,201.99,9.27369276]
[1757208194088,15.71742912,202.07,201.99,9.27369276]
[1757208194382,45.59742912,202.07,201.99,9.27369276]
[1757208196688,39.77742912,202.07,201.99,9.27369276]
[1757208196884,5.82,202.06,201.99,9.27369276]
[1757208197184,1.55369276,202.05,201.98,1.55369276]
[1757208197490,38.22373636,202.07,201.96,2.42726094]
[1757208197681,5.82,202.06,201.97,7.72]
[1757208197990,8.34373636,202.06,201.97,7.72]
[1757208198684,5.82,202.04,201.97,7.72]
[1757208202193,5.82,202.05,201.97,7.72]
[1757208202392,10.7709973,202.06,201.97,7.72]
[1757208202592,5.82,202.05,201.97,7.72]
[1757208202793,10.7709973,202.06,201.97,7.72]
[1757208202994,5.82,202.05,201.97,7.72]
[1757208203193,10.7709973,202.06,201.97,7.72]
[1757208203496,5.82,202.02,201.97,7.72]
[1757208203690,2.42726094,202.03,201.92,7.73]
[1757208203897,29.88,202.07,201.87,7.73]
[1757208203898,5.82,201.99,201.87,7.73]
[1757208204092,5.82,201.96,201.87,2.42726094]
[1757208204399,5.82,201.96,201.9,2.42726094]
[1757208204787,5.82,201.96,201.91,7.73]
[1757208204993,5.82,201.96,201.9,2.42726094]
[1757208205294,5.82,201.96,201.91,7.73]
[1757208206796,5.82,201.96,201.9,2.42726094]
[1757208208094,5.82,201.96,201.91,7.73]
[1757208208393,5.82,201.96,201.9,2.42726094]
[1757208208591,5.82,201.96,201.91,7.73]
[1757208208895,5.82,201.96,201.9,2.42726094]
[1757208209096,5.82,201.98,201.91,7.73]
[1757208213095,72.46,201.99,201.91,7.73]
[1757208213495,5.83,201.98,201.91,7.73]
[1757208215098,5.83,201.97,201.91,7.73]
[1757208223111,8.25726094,202.01,201.91,7.73]
[1757208223306,5.83,202.01,201.91,7.73]
[1757208223506,5.83,202.01,201.93,7.73]
[1757208223708,42.94726094,202.04,201.93,7.73]
[1757208224511,5.83,202.03,201.93,7.73]
[1757208224907,42.94726094,202.04,201.93,7.73]
[1757208225108,5.83,202.03,201.93,7.73]
[1757208225303,42.94726094,202.04,201.93,7.73]
[1757208225508,5.83,202.03,201.93,7.73]
[1757208226011,42.94726094,202.04,201.93,7.73]
[1757208226205,5.83,202.03,201.93,7.73]
[1757208226407,5.83,202.01,201.93,7.73]
[1757208230111,42.96726094,202.02,201.93,7.73]
[1757208230315,5.83,202.01,201.93,7.73]
[1757208230516,75.85,202.01,201.93,7.73]
[1757208231216,5.83,202.0,201.93,7.73]
[1757208231619,70.02,202.01,201.93,7.73]
[1757208232214,5.83,202.0,201.93,7.73]
[1757208232624,70.02,202.01,201.93,7.73]
[1757208232923,5.83,202.0,201.93,7.73]
[1757208234315,109.89,202.0,201.93,7.73]
[1757208236623,5.83,201.99,201.81,73.45153803]
[1757208236821,104.06,202.0,201.88,7.43]
[1757208237224,126.71,201.99,201.91,7.43]
[1757208239027,5.83,201.99,201.91,7.43]
[1757208243429,5.83,201.99,201.93,7.43]
[1757208253639,129.22373636,202.0,201.9,2.42726094]
[1757208253640,8.34373636,201.98,201.9,2.42726094]
[1757208253935,8.34373636,201.98,201.92,7.43]
[1757208254136,8.34373636,201.98,201.93,4.38458329]
[1757208254339,8.34373636,201.98,201.91,7.43]
[1757208254529,8.34373636,201.98,201.93,7.43]
[1757208254730,8.34373636,201.98,201.91,7.43]
[1757208254930,8.34373636,201.98,201.93,7.43]
[1757208255136,14.17373636,201.98,201.9,7.43]
[1757208255328,14.17373636,201.98,201.89,2.42726094]
[1757208255329,14.17373636,201.98,201.92,7.43]
[1757208255530,14.17373636,201.98,201.93,4.38464438]
[1757208255840,14.17373636,201.98,201.92,7.43]
[1757208256040,5.83,201.97,201.94,7.43]
[1757208260343,5.83,201.97,201.93,8.03]
[1757208260542,5.83,201.97,201.92,1.55447429]
[1757208260745,5.83,201.97,201.94,8.03]
[1757208261438,5.83,201.97,201.93,8.03]
[1757208261742,5.83,201.97,201.94,12.41454586]
[1757208261942,5.83,201.97,201.94,8.03]
[1757208266937,5.83,201.97,201.92,1.55447429]
[1757208267135,5.83,201.97,201.94,8.03]
[1757208267339,5.83,201.97,201.93,8.03]
[1757208267540,5.83,201.97,201.94,12.41736989]
[1757208267744,5.83,201.97,201.94,8.03]
[1757208269643,5.83,201.97,201.91,1.55447429]
[1757208269844,5.83,201.97,201.92,8.88640674]
[1757208270044,5.83,201.97,201.94,8.03]
[1757208270641,5.83,201.97,201.91,1.55447429]
[1757208270945,5.83,201.97,201.92,8.88637194]
[1757208271140,5.83,201.97,201.94,8.03]
[1757208272343,5.83,201.97,201.92,8.03]
[1757208272547,136.54821065,202.0,201.94,8.03]
[1757208272947,5.83,201.99,201.94,8.03]
[1757208274044,130.71821065,202.0,201.94,8.03]
[1757208274242,5.83,201.99,201.92,8.03]
[1757208274438,5.83,201.99,201.93,4.38328484]
[1757208274639,5.83,201.99,201.94,4.38328484]
[1757208274847,5.83,201.99,201.92,8.03]
[1757208275045,5.83,201.99,201.93,4.38328486]
[1757208275350,5.83,201.98,201.95,8.03]
[1757208275543,130.71821065,202.0,201.95,8.03]
[1757208275744,5.83,201.99,201.95,8.03]
[1757208275948,5.83,202.0,201.95,8.03]
[1757208276150,59.99,202.01,201.96,12.41181797]
[1757208276350,5.83,202.02,201.98,8.03]
[1757208276543,5.83,202.02,201.89,69.3262]
[1757208276544,126.65,202.04,201.99,1.55447429]
[1757208276743,8.34373636,202.05,201.91,69.3186]
[1757208276744,14.17373636,202.05,202.02,8.03]
[1757208276949,8.34373636,202.05,202.04,8.03]
[1757208277143,338.73,202.08,202.04,8.03]
[1757208277447,5.83,202.07,202.01,1.55447429]
[1757208277646,1.55447429,202.06,202.0,8.03]
[1757208277848,1.55447429,202.04,202.0,8.03]
[1757208278052,5.83,202.03,201.97,9.58447429]
[1757208278252,5.83,202.03,201.98,4.89896461]
[1757208278453,5.83,202.03,201.97,9.58447429]
[1757208279554,120.8,202.04,202.0,8.03]
[1757208279745,120.8,202.04,201.99,1.55447429]
[1757208279956,120.8,202.04,202.0,8.03]
[1757208280256,126.63,202.06,202.02,8.03]
[1757208280454,126.63,202.06,202.01,1.55447429]
[1757208280650,126.63,202.06,202.02,8.03]
[1757208281055,126.63,202.06,201.92,73.44359561]
[1757208281056,122.35447429,202.06,201.99,9.58447429]
[1757208281261,5.83,202.05,201.99,9.58447429]
[1757208288362,5.83,202.05,201.99,8.03]
[1757208288558,5.83,202.05,202.0,1.55447429]
[1757208288764,122.35447429,202.06,202.0,1.55447429]
[1757208288963,5.82,202.05,202.0,9.29447429]
[1757208289464,122.35447429,202.06,202.0,1.55447429]
[1757208289663,5.82,202.05,202.0,9.29447429]
[1757208290162,122.35447429,202.06,202.0,1.55447429]
[1757208290560,5.82,202.05,202.0,9.29447429]
[1757208290962,122.35447429,202.06,202.0,1.55447429]
[1757208291163,128.17447429,202.06,202.0,9.29447429]
[1757208296974,128.17447429,202.06,202.0,7.74]
[1757208297274,122.35447429,202.06,202.0,1.55447429]
[1757208297479,5.82,202.05,202.0,9.29447429]
[1757208297872,122.35447429,202.06,202.0,1.55447429]
[1757208298272,5.82,202.05,202.0,9.29447429]
[1757208298472,122.35447429,202.06,202.0,1.55447429]